Cogmind - Beta 11 X7 @@@ ROGUE MODE // 2021.08.24 @ 17:59:05 Player: lsend Result: Destroyed by S-27 Virus with Autogun Performance ------------- Evolutions (4) 2000 Regions Visited (10) 2000 Robots Destroyed (24) 120 Value Destroyed (470) 470 Prototype IDs (1) 20 Alien Tech Used (0) 0 Bonus (300) 300 TOTAL SCORE: 4910 Bonus ------- Met Imprinter 300 Cogmind --------- Core Integrity 0/850 Matter 290/300 Energy 98/100 System Corruption 0% Temperature Cool (0) Movement Core (50) Location -6/Factory Parts ------- > --- POWER (2) -------- (None) > --- PROPULSION (5) --- (None) > --- UTILITY (6) ------ (None) > --- WEAPON (2) ------- (None) > --- INVENTORY (5) ---- Small Storage Unit Medium Armor Plating Datajack GAL Module Peak State ------------ > --- POWER ------------ (None) > --- PROPULSION ------- VTOL Module VTOL Module > --- UTILITY ---------- Improved Signal Interpreter Advanced Melee Analysis Suite Makeshift Hacking Suite Makeshift System Shield Bomb Factory No. 2 > --- WEAPON ----------- Ripper > --- INVENTORY -------- Light Nuclear Core Small Storage Unit Medium Armor Plating Datajack [Rating: 36] Favorites ----------- Power Light Nuclear Core Power Core Light Nuclear Core Propulsion VTOL Module Treads Light Treads Flight Unit VTOL Module Utility Improved Signal Interpreter Device Bomb Factory No. 2 Storage Small Storage Unit Processor Improved Signal Interpreter Hackware Makeshift Hacking Suite Weapon Ripper Energy Cannon Proton Cannon Launcher Mini Grenade Launcher Slashing Weapon Ripper Build | -11 -10 -10 -9 -8 -7 -7 -7 -7 -6 -6 ------- Run | Scr Mat Min Mat Mat Fac Low Low Zio Pro Fac Slots Evolved 8 | . . . 2 2 2 . . . . 2 Power 1 | . . . . . . . . . . 1 Propulsion 3 | . . . 1 . 1 . . . . 1 Utility 4 | . . . 1 2 1 . . . . . Weapon . | . . . . . . . . . . . Parts Attached 28 | 3 4 . 2 4 3 6 1 3 . 2 Power 1 | . . . . . . . . . . 1 Engine . | . . . . . . . . . . . Core 1 | . . . . . . . . . . 1 Reactor . | . . . . . . . . . . . Propulsion 8 | 2 2 . . 2 . 1 . 1 . . Treads 2 | 2 . . . . . . . . . . Leg . | . . . . . . . . . . . Wheel . | . . . . . . . . . . . Hover . | . . . . . . . . . . . Flight 6 | . 2 . . 2 . 1 . 1 . . Utility 8 | 1 . . . . 1 4 1 1 . . Device 3 | . . . . . . 2 . 1 . . Storage 1 | 1 . . . . . . . . . . Processor 2 | . . . . . 1 1 . . . . Hackware 2 | . . . . . . 1 1 . . . Protection . | . . . . . . . . . . . Artifact . | . . . . . . . . . . . Weapon 11 | . 2 . 2 2 2 1 . 1 . 1 Energy Gun . | . . . . . . . . . . . Energy Cannon 1 | . . . . . . . . . . 1 Ballistic Gun . | . . . . . . . . . . . Ballistic Cannon . | . . . . . . . . . . . Launcher 6 | . 2 . . 2 2 . . . . . Special Weapon . | . . . . . . . . . . . Impact Weapon . | . . . . . . . . . . . Slashing Weapon 4 | . . . 2 . . 1 . 1 . . Piercing Weapon . | . . . . . . . . . . . Special Melee Weapon . | . . . . . . . . . . . Unidentified Prototypes 1 | . . . . . . . . 1 . . Parts Lost 15 | . 1 . 1 1 3 1 . . 2 6 Power 1 | . . . . . . . . . . 1 Propulsion 6 | . 1 . 1 . 2 . . . 2 . Utility 4 | . . . . . . . . . . 4 Weapon 4 | . . . . 1 1 1 . . . 1 Highest Loss Streak 4 | . 1 . 1 1 3 1 . . 2 4 Average Slot Usage (%) 29 | . 28 16 22 14 17 28 38 52 48 10 Treads 3 | . 27 2 . . . . . . . . Flight 7 | . . 14 9 6 7 6 7 14 11 . Processor 7 | . . . . . 4 9 15 15 15 4 Hackware 5 | . . . . . . . 7 15 15 4 Launcher 1 | . 1 . . . 3 5 . . . . Slashing Weapon 3 | . . . 12 7 . 4 7 7 5 . Naked Turns 101 | . . . . . . . . . . 101 Heaviest Build 4 | . 1 . 4 2 1 4 3 4 4 . Greatest Support 4 | 3 3 4 4 4 4 4 4 4 4 3 Greatest Overweight (x) 1 | . . . 1 . . . . . 1 . Average Overweight (x) . | . . . . . . . . . . . Largest Inventory Capacity 8 | 8 5 5 5 5 5 5 5 5 5 5 Average Capacity 5 | 5 5 5 5 5 5 5 5 5 5 5 Most Carried 5 | 1 5 5 5 5 5 4 4 5 5 5 Average Carried 4 | . 3 5 5 4 3 3 4 4 5 4 Final Capacity 5 | 5 5 5 5 5 5 5 5 5 5 5 Final Carried 5 | 1 5 5 5 5 3 4 4 5 5 4 Class Distribution -------------------- 66% | Mutant 33% | Hacker-Mutant Dominant Class ---------------- Mutant | -10/Materials Mutant | -10/Mines Mutant | -9/Materials Mutant | -8/Materials Mutant | -7/Factory Mutant | -7/Lower Caves Mutant | -7/Lower Caves Hacker-Mutant | -7/Zion Hacker-Mutant | -6/Proximity Caves Mutant | -6/Factory Resources | -11 -10 -10 -9 -8 -7 -7 -7 -7 -6 -6 ----------- Run | Scr Mat Min Mat Mat Fac Low Low Zio Pro Fac Matter Collected 651 | 216 36 53 . 5 . 139 162 40 . . Remotely . | . . . . . . . . . . . Salvage Created 400 | . 111 . . 24 23 53 159 . . 30 Parts 39 | . 11 . . 6 4 11 7 . . . Haulers Intercepted . | . . . . . . . . . . . Recyclers Shooed 1 | . . . . . 1 . . . . . Parts Field Recycled . | . . . . . . . . . . . Retrieved Matter . | . . . . . . . . . . . Parts Self-Destructed 10 | . . . . . . 8 2 . . . Prevented . | . . . . . . . . . . . Kills | -11 -10 -10 -9 -8 -7 -7 -7 -7 -6 -6 ------- Run | Scr Mat Min Mat Mat Fac Low Low Zio Pro Fac Combat Hostiles Destroyed 20 | . 6 . . 6 3 4 . . . 1 Cannons 1 | . . . . . . . . . . 1 AOE 19 | . 6 . . 6 3 4 . . . . Classes Destroyed 4 | . 4 . . . . . . . . . Worker 3 | . 3 . . . . . . . . . Watcher 1 | . 1 . . . . . . . . . Swarmer 17 | . 3 . . 6 3 4 . . . 1 Grunt 3 | . 3 . . . . . . . . . Best Kill Streak 6 | . 6 . . 3 3 4 . . . 1 Combat Bots Only 4 | . 3 . . 3 3 4 . . . 1 Max Kills in Single Turn 4 | . 2 . . 3 1 4 . . . 1 Gunslinging . | . . . . . . . . . . . Exploded 4 | . 2 . . 3 1 4 . . . . Melee . | . . . . . . . . . . . Uniques/NPCs Destroyed . | . . . . . . . . . . . Combat | -11 -10 -10 -9 -8 -7 -7 -7 -7 -6 -6 -------- Run | Scr Mat Min Mat Mat Fac Low Low Zio Pro Fac Damage Taken 2535 | . 303 10 117 161 357 180 93 . 227 1087 Core 1693 | . 87 . 95 52 219 118 93 . 175 854 Absorbed by Shields . | . . . . . . . . . . . Core Remaining (%) 68 | 100 . 65 76 90 . . . . 13 . Volleys Fired 29 | . 11 . . 4 6 2 . . . 6 Largest 1 | . 1 . . 1 1 1 . . . 1 Hottest 75 | . 30 . . 30 30 30 . . . 75 Shots Fired 29 | . 11 . . 4 6 2 . . . 6 Gun . | . . . . . . . . . . . Cannon 6 | . . . . . . . . . . 6 Launcher 23 | . 11 . . 4 6 2 . . . . Special . | . . . . . . . . . . . Kinetic . | . . . . . . . . . . . Thermal . | . . . . . . . . . . . Explosive 23 | . 11 . . 4 6 2 . . . . Electromagnetic 6 | . . . . . . . . . . 6 Robot Hit Streak 3 | . 3 . . 2 1 . . . . 2 Robot Miss Streak 4 | . 1 . . . 2 . . . . 4 Penetration Max . | . . . . . . . . . . . Secondary Targets . | . . . . . . . . . . . Shots Hit Robots 13 | . 4 . . 1 1 . 5 . . 2 Core Hits 41 | . 13 . 1 7 9 5 3 . . 3 Critical Kills . | . . . . . . . . . . . Critical Parts Destroyed . | . . . . . . . . . . . Critical Strikes . | . . . . . . . . . . . Melee Attacks 7 | . . . . . . . 5 . 2 . Impact . | . . . . . . . . . . . Slashing 7 | . . . . . . . 5 . 2 . Piercing . | . . . . . . . . . . . Sneak Attacks . | . . . . . . . . . . . Combat Hostiles . | . . . . . . . . . . . Follow-up Attacks . | . . . . . . . . . . . Damage Inflicted 2250 | . 724 . 2 334 374 165 579 . . 72 Guns . | . . . . . . . . . . . Cannons 54 | . . . . . . . . . . 54 Explosions 1586 | . 713 . . 334 374 165 . . . . Melee 579 | . . . . . . . 579 . . . Ramming 31 | . 11 . 2 . . . . . . 18 Kinetic . | . . . . . . . . . . . Thermal . | . . . . . . . . . . . Explosive 1586 | . 713 . . 334 374 165 . . . . Electromagnetic 54 | . . . . . . . . . . 54 Impact . | . . . . . . . . . . . Slashing 579 | . . . . . . . 579 . . . Piercing . | . . . . . . . . . . . Highest Corruption 1 | . 1 1 . . . . . . . . Average Corruption 1 | . 1 1 . . . . . . . . Corruption Purged . | . . . . . . . . . . . Overload Shots . | . . . . . . . . . . . Overflow Damage 270 | . 5 . . 40 50 . 175 . . . Projectiles . | . . . . . . . . . . . Explosions 95 | . 5 . . 40 50 . . . . . Melee 175 | . . . . . . . 175 . . . Knockbacks . | . . . . . . . . . . . Impact . | . . . . . . . . . . . Kinetic . | . . . . . . . . . . . Secondary . | . . . . . . . . . . . Self-Inflicted Damage 118 | . 45 . 1 26 39 . . . . 7 Shots 3 | . 1 . . 1 1 . . . . . Rammed 11 | . 3 . 1 . . . . . . 7 Targets Rammed 11 | . 3 . 1 . . . . . . 7 Kicked . | . . . . . . . . . . . Crushed . | . . . . . . . . . . . Highest Temperature 14 | . 5 . . . 9 . . . . 14 Average Temperature 9 | . 5 . . . 9 . . . . 10 Received Heat Transfer 389 | . 135 6 60 18 117 24 29 . . . Siege Activations . | . . . . . . . . . . . Robots Corrupted . | . . . . . . . . . . . Combat Hostiles . | . . . . . . . . . . . Parts Fried . | . . . . . . . . . . . Impact Corruptions . | . . . . . . . . . . . Robots Melted . | . . . . . . . . . . . Combat Hostiles . | . . . . . . . . . . . Parts Melted . | . . . . . . . . . . . Heat Transferred . | . . . . . . . . . . . Parts Sabotaged . | . . . . . . . . . . . Parts Stolen . | . . . . . . . . . . . Parts Stripped . | . . . . . . . . . . . Power Chain Reactions . | . . . . . . . . . . . Missiles Intercepted . | . . . . . . . . . . . Alert | -11 -10 -10 -9 -8 -7 -7 -7 -7 -6 -6 ------- Run | Scr Mat Min Mat Mat Fac Low Low Zio Pro Fac Peak Influence 338 | . 239 133 86 301 338 . . . . 140 Initial 136 | . . 88 51 35 136 . . . . 34 Average 115 | . 98 95 73 200 221 . . . . 45 Maximum Alert Level 1 | . 1 . . 1 1 . . . . . Low Security (%) 80 | 100 87 100 100 49 47 . . . . 100 Level 1 19 | . 12 . . 50 52 . . . . . Level 2 . | . . . . . . . . . . . Level 3 . | . . . . . . . . . . . Level 4 . | . . . . . . . . . . . Level 5 . | . . . . . . . . . . . High Security . | . . . . . . . . . . . Max Security . | . . . . . . . . . . . Squads Dispatched 8 | . 2 . 3 . 3 . . . . . Investigation 2 | . 1 . . . 1 . . . . . Extermination . | . . . . . . . . . . . Reinforcement 6 | . 1 . 3 . 2 . . . . . Assault . | . . . . . . . . . . . Garrison . | . . . . . . . . . . . Intercept . | . . . . . . . . . . . Construction Impeded 1 | . . . . . 1 . . . . . Haulers Reinforced . | . . . . . . . . . . . Active Scanning Responses . | . . . . . . . . . . . Cargo Convoy Interrupts . | . . . . . . . . . . . Stealth | -11 -10 -10 -9 -8 -7 -7 -7 -7 -6 -6 --------- Run | Scr Mat Min Mat Mat Fac Low Low Zio Pro Fac Distress Signals 2 | . 1 . 1 . . . . . . . Communications Jammed . | . . . . . . . . . . . Distress Signals . | . . . . . . . . . . . Times Spotted 94 | . 14 4 9 10 11 9 9 . 10 18 Peak Tracking Total 10 | . 4 3 7 7 5 3 10 . 6 8 Tactical Retreats 17 | . 1 1 . 2 3 1 3 . 2 4 Traps | -11 -10 -10 -9 -8 -7 -7 -7 -7 -6 -6 ------- Run | Scr Mat Min Mat Mat Fac Low Low Zio Pro Fac Traps Triggered 2 | . 1 . . . 1 . . . . . Indirectly . | . . . . . . . . . . . Trap Hack Attempts . | . . . . . . . . . . . Triggered . | . . . . . . . . . . . Disarmed . | . . . . . . . . . . . Reprogrammed . | . . . . . . . . . . . Reused . | . . . . . . . . . . . Traps Extracted . | . . . . . . . . . . . Installed . | . . . . . . . . . . . Triggered . | . . . . . . . . . . . Machines | -11 -10 -10 -9 -8 -7 -7 -7 -7 -6 -6 ---------- Run | Scr Mat Min Mat Mat Fac Low Low Zio Pro Fac Machines Disabled 3 | . 1 . . 1 . . . . . 1 Max in Single Turn 1 | . 1 . . 1 . . . . . 1 Machines Sabotaged . | . . . . . . . . . . . Garrisons Compromised . | . . . . . . . . . . . Overloaded Fab Kills . | . . . . . . . . . . . Fab Network Shutdowns . | . . . . . . . . . . . Hacking | -11 -10 -10 -9 -8 -7 -7 -7 -7 -6 -6 --------- Run | Scr Mat Min Mat Mat Fac Low Low Zio Pro Fac Machines Accessed 7 | . 3 . . . 1 1 . . . 2 Terminals 4 | . 2 . . . . . . . . 2 Fabricators . | . . . . . . . . . . . Repair Stations . | . . . . . . . . . . . Recycling Units 2 | . 1 . . . 1 . . . . . Scanalyzers . | . . . . . . . . . . . Garrison Access . | . . . . . . . . . . . Total Hacks 15 | . 8 . . . 1 1 . . . 5 Successful 8 | . 4 . . . 1 1 . . . 2 Failed 7 | . 4 . . . . . . . . 3 Catastrophic 2 | . 1 . . . . . . . . 1 Database Lockouts . | . . . . . . . . . . . Manual 1 | . 1 . . . . . . . . . Terminals 9 | . 4 . . . . . . . . 5 Fabricators . | . . . . . . . . . . . Repair Stations . | . . . . . . . . . . . Recycling Units 5 | . 4 . . . 1 . . . . . Scanalyzers . | . . . . . . . . . . . Garrison Access . | . . . . . . . . . . . Terminal Hacks 6 | . 3 . . . . 1 . . . 2 Open Door 1 | . . . . . . 1 . . . . Branch Access Points 1 | . 1 . . . . . . . . . Unreport Threat 3 | . 2 . . . . . . . . 1 Zone Layout 1 | . . . . . . . . . . 1 Fabricator Hacks . | . . . . . . . . . . . Repair Station Hacks . | . . . . . . . . . . . Recycling Unit Hacks 2 | . 1 . . . 1 . . . . . Retrieve Components 2 | . 1 . . . 1 . . . . . Scanalyzer . | . . . . . . . . . . . Garrison Access Hacks . | . . . . . . . . . . . Unauthorized Hacks . | . . . . . . . . . . . Terminals . | . . . . . . . . . . . Fabricators . | . . . . . . . . . . . Repair Stations . | . . . . . . . . . . . Recycling Units . | . . . . . . . . . . . Scanalyzers . | . . . . . . . . . . . Garrison Access . | . . . . . . . . . . . Data Cores Recovered . | . . . . . . . . . . . Used . | . . . . . . . . . . . Hacking Detections 4 | . 2 . . . . . . . . 2 Full Trace Events . | . . . . . . . . . . . Feedback Events . | . . . . . . . . . . . Feedback Blocked . | . . . . . . . . . . . Robot Schematics Acquired . | . . . . . . . . . . . Robots Built . | . . . . . . . . . . . Matter . | . . . . . . . . . . . Time . | . . . . . . . . . . . Total Robot Build Rating . | . . . . . . . . . . . Part Schematics Acquired . | . . . . . . . . . . . Parts Built . | . . . . . . . . . . . Matter . | . . . . . . . . . . . Time . | . . . . . . . . . . . Total Part Build Rating . | . . . . . . . . . . . Parts Repaired . | . . . . . . . . . . . Time . | . . . . . . . . . . . Parts Recycled . | . . . . . . . . . . . Recycled Matter . | . . . . . . . . . . . Retrieved Matter . | . . . . . . . . . . . Retrieved Components 2 | . . . . . 2 . . . . . Parts Scanalyzed . | . . . . . . . . . . . Part Schematics Acquired . | . . . . . . . . . . . Parts Damaged . | . . . . . . . . . . . Bothacking | -11 -10 -10 -9 -8 -7 -7 -7 -7 -6 -6 ------------ Run | Scr Mat Min Mat Mat Fac Low Low Zio Pro Fac Used RIF Installer . | . . . . . . . . . . . Robots Hacked . | . . . . . . . . . . . Non-combat . | . . . . . . . . . . . Combat . | . . . . . . . . . . . Robot Hacks Applied . | . . . . . . . . . . . Relay Couplers Released . | . . . . . . . . . . . Robots Rewired . | . . . . . . . . . . . Allies Hacked . | . . . . . . . . . . . Hacks Repelled . | . . . . . . . . . . . Allies | -11 -10 -10 -9 -8 -7 -7 -7 -7 -6 -6 -------- Run | Scr Mat Min Mat Mat Fac Low Low Zio Pro Fac Total Allies . | . . . . . . . . . . . Largest Group . | . . . . . . . . . . . Highest-Rated Group . | . . . . . . . . . . . Highest-Rated Ally . | . . . . . . . . . . . Total Orders . | . . . . . . . . . . . Ally Attacks . | . . . . . . . . . . . Total Damage . | . . . . . . . . . . . Kills . | . . . . . . . . . . . Allies Corrupted . | . . . . . . . . . . . Allies Melted . | . . . . . . . . . . . Intel | -11 -10 -10 -9 -8 -7 -7 -7 -7 -6 -6 ------- Run | Scr Mat Min Mat Mat Fac Low Low Zio Pro Fac Robot Analysis Total . | . . . . . . . . . . . Derelict Logs Recovered 8 | . . 1 . . . 1 3 2 1 . Drone Launches . | . . . . . . . . . . . Drone Recoveries . | . . . . . . . . . . . Exploration | -11 -10 -10 -9 -8 -7 -7 -7 -7 -6 -6 ------------- Run | Scr Mat Min Mat Mat Fac Low Low Zio Pro Fac Turns Passed 1485 | 21 207 50 51 103 165 104 117 310 110 247 Spaces Moved 3154 | 31 298 121 109 187 327 249 295 855 273 409 Core 1113 | 31 298 7 14 136 147 12 . . 59 409 Treads . | . . . . . . . . . . . Legs . | . . . . . . . . . . . Wheels . | . . . . . . . . . . . Hover . | . . . . . . . . . . . Flight 2041 | . . 114 95 51 180 237 295 855 214 . Fastest Speed 35 | 50 50 40 40 40 40 35 35 35 35 50 Average Speed 41 | 50 50 40 42 47 44 35 35 35 38 50 Slowest Speed 100 | 50 50 50 100 50 50 50 35 35 100 50 Overloaded Moves . | . . . . . . . . . . . Propulsion Burnouts . | . . . . . . . . . . . Robots Hopped 13 | . . 3 3 1 . . 1 . 5 . Cave-ins Triggered . | . . . . . . . . . . . Exploration Rate (%) 37 | 3 57 39 18 26 11 52 57 86 48 18 Regions Visited 10 Branch Regions 5 Pre-discovered Areas 4 | . . . . . . 1 . 3 . . Known Exits Taken 6 | . 1 . . . 1 1 1 1 1 . Unknown Exits Taken 4 | 1 . 1 1 1 . . . . . . Scrap Searched 11 | . . 2 . . . 4 1 4 . . Spaces Dug 2 | . . . . . . . . . 2 . Terrain Destroyed 155 | . 73 . . 29 36 15 . . 2 . Melee 2 | . . . . . . . . . 2 . Projectile . | . . . . . . . . . . . AOE 153 | . 73 . . 29 36 15 . . . . Terrain Rammed . | . . . . . . . . . . . Walls Destroyed . | . . . . . . . . . . . Machines Disabled . | . . . . . . . . . . . Actions | -11 -10 -10 -9 -8 -7 -7 -7 -7 -6 -6 --------- Run | Scr Mat Min Mat Mat Fac Low Low Zio Pro Fac Total 3279 | 34 344 118 109 197 339 259 299 865 270 445 Wait 50 | . 22 . . . 4 . . 3 . 21 Move 3118 | 30 297 114 102 184 326 248 292 854 262 409 Hop 13 | . . 3 3 1 . . 1 . 5 . Pick Up 8 | . 4 . . 1 . 1 . 2 . . Fast Attach 21 | 3 2 . 2 2 1 6 1 3 . 1 Attach 7 | . 2 . . 2 2 . . . . 1 Detach 5 | 1 2 . . 2 . . . . . . Swap . | . . . . . . . . . . . Drop 10 | . 1 1 1 1 . 2 . 3 1 . Fire 29 | . 11 . . 4 6 2 . . . 6 Melee 7 | . . . . . . . 5 . 2 . Ram 11 | . 3 . 1 . . . . . . 7 Kick . | . . . . . . . . . . . Crush . | . . . . . . . . . . . Escape Stasis . | . . . . . . . . . . . Rewire . | . . . . . . . . . . . Trap . | . . . . . . . . . . . Miscellaneous . | . . . . . . . . . . . Route ------- -11/Scrapyard -10/Materials (discovered 2 exits: [*Mat] / *Min) -10/Mines -9/Materials -8/Materials -7/Factory -7/Lower Caves -7/Lower Caves -7/Zion (discovered 2 exits: Dee / *Pro) -6/Proximity Caves -6/Factory History --------- Turn | Location | Event 10 | -11/Scrapyard | Discovered new exit (range 16) 22 | -11/Scrapyard | Entered Materials 171 | -10/Materials | Discovered new exit (range 9) 172 | -10/Materials | Identified exit to Mines 229 | -10/Materials | Entered Mines 269 | -10/Mines | Received a Rocket Launcher from a helpful Derelict 277 | -10/Mines | Discovered new exit (range 5) 279 | -10/Mines | Entered Materials 279 | -9/Materials | Evolved 2 slots: Propulsion x1, Utility x1 320 | -9/Materials | Build established: Mutant 329 | -9/Materials | Discovered new exit (range 4) 330 | -9/Materials | Entered another Materials area 330 | -8/Materials | Evolved 2 slots: Utility x2 421 | -8/Materials | Discovered new exit (range 16) 433 | -8/Materials | Entered Factory 433 | -7/Factory | Evolved 2 slots: Propulsion x1, Utility x1 502 | -7/Factory | Discovered new exit (range 15) 551 | -7/Factory | Lost 3 parts (2n1w) 598 | -7/Factory | Identified exit to Lower Caves 598 | -7/Factory | Entered Lower Caves 674 | -7/Lower Caves | Spotted B-75 Beast 681 | -7/Lower Caves | Learned location of Zion (-7) 686 | -7/Lower Caves | Attracted the attention of an 0b10 checkpoint 691 | -7/Lower Caves | Discovered new exit (range 7) 702 | -7/Lower Caves | Identified exit to Lower Caves 702 | -7/Lower Caves | Entered another Lower Caves area 731 | -7/Lower Caves | Attacked by a faux Warlord 733 | -7/Lower Caves | Core integrity fell below 50% 742 | -7/Lower Caves | Learned 4 Factory zone layouts 761 | -7/Lower Caves | Attracted the attention of an 0b10 checkpoint 803 | -7/Lower Caves | Learned Factory emergency access door positions 814 | -7/Lower Caves | Learned Factory terminal intel 818 | -7/Lower Caves | Discovered new exit (range 4) 819 | -7/Lower Caves | Identified exit to Zion 819 | -7/Lower Caves | Entered Zion 841 | -7/Zion | Discovered new exit (range 10) 856 | -7/Zion | Found Prototype Device 856 | -7/Zion | Identified Bomb Factory No. 2 906 | -7/Zion | Found GAL Module 967 | -7/Zion | Learned location of Recycling (-7) 978 | -7/Zion | Identified exit to Deep Caves 1094 | -7/Zion | Learned location of Armory (-3) 1112 | -7/Zion | Build established: Hacker-Mutant 1128 | -7/Zion | Identified exit to Proximity Caves 1129 | -7/Zion | Entered Proximity Caves 1133 | -6/Proximity Caves | Identified exit to Factory 1229 | -6/Proximity Caves | Core integrity fell below 20% 1239 | -6/Proximity Caves | Entered Factory 1239 | -6/Factory | Evolved 2 slots: Power x1, Propulsion x1 1242 | -6/Factory | Loaded intel: 19 terminal locations 1354 | -6/Factory | Core integrity fell below 50% 1388 | -6/Factory | Lost 4 parts (4u) 1448 | -6/Factory | Core integrity fell below 20% 1486 | -6/Factory | Destroyed by S-27 Virus with Autogun Last Messages --------------- >>Layout(Zone) Retrieving Zone 3R layout... Downloaded map data. >>Alert(Purge) Purged threat record, alert level lowered. 01314_ Mak. Hacking Suite destroyed. 01328_ Mak. System Shield destroyed. 01332_ K-01 Serf collects debris. 01343_ Slammed into S-27 Virus. 01346_ Destabilizing: System interference. 01346_ Imp. Signal Interpreter temporarily disabled. 01347_ Slammed into S-27 Virus. 01357_ Imp. Signal Interpreter destroyed. 01398_ Acquired Proton Cannon. 01406_ Terminal disabled. 01420_ S-27 Virus destroyed. 01423_ Lgt. Nuclear Core destroyed. 01426_ Proton Cannon destroyed. 01455_ ALERT: Security rotation in progress. 01465_ K-01 Serf collects debris. Map ----- +----------------------------------------------------+ | ?????????????????????????????????????????????????? | | ?????????????????????????????????????????????????? | | ?????????????????????????????????????????????????? | | ????????????????????????????????????""???????????? | | ????????????????????????????????????""???????????? | | ????????????????????????????????????T"???????????? | | ????????????????????????????????????""???????????? | | ????????????????????????????????????""???????????? | | ?????????????????????????????????????????????????? | | ?????????????????????????????????????????????????? | | ?????????????????????????????????????????????????? | | ?????????????????????????????????????????????????? | | ??????????????????????????????#??????????????????? | | ????????????????????????????? #??????????????????? | | ????????????????????????????" #??????????????????? | | ????????????????????????????" ???????????????????? | | ???????????????????????????? ???????????????????? | | ?????????????###############p##??????????????????? | | ?????????????# #??????????????????? | | ?????????????# #??????????????????? | | ?????????????# #??????????????????? | | ?????????????# #??????????????????? | | ?????????????# #??????????????????? | | ?????????????# s #??????????????????? | | ?????????????# s #??????????????????? | | ?????????????# s@ #??????????????????? | | ?????????????# t s #??????????????????? | | ?????????????###/######+#######??????????????????? | | ?????????????# #??????????????????????? | | ?????????????# #??????????????????????? | | ?????????????# #??????????????????????? | | ????######???# #??????????????????????? | | ????# ??# #??????????????????????? | | ????# "??# ####+###??????????????????????? | | ????# ""S?# #?????????????????????????????? | | ###?# "" ?# #?"""""???????????????????????? | | #?? # #?""T""???????????????????????? | | +?+ """ # #?????????????????????????????? | | #?# """ + +?????????????????????????????? | | #?# """ # #?????????????????????????????? | | #?? # #?????????????????????????????? | | #??######### #?????????????????????????????? | | #???# #?????????????????????????????? | | ##### #?????????????????????????????? | | / #?????????????????????????????? | | ##### #?????????????????????????????? | | #???# #?????????????????????????????? | | #???# #### ###?????????????????????????????? | | ###???# #??? #???????????????????????????????? | | ??????# #??? #???????????????????????????????? | +----------------------------------------------------+ Best States ------------- Heat Dissipation 37 Energy Generation 14 Energy Capacity 160 Matter Stores 300 Matter Capacity 300 Sight Range 16 Terrain Scan Density 10 Evasion (%) 63 Melee Accuracy 8 Offensive Hacking 11 Defensive Hacking 11 Item Schematics ----------------- None Robot Schematics ------------------ None Fabricated ------------ Nothing Alien Tech Used ----------------- None Achievements -------------- None Challenges ------------ None Game ------ Seed BackupCoordinationSabre Manual? 0 Play Time 00:28:35 Cumulative 597.2 hours Start 2021.08.24 @ 17:02:38 End 2021.08.24 @ 17:59:05 Sessions 2 Manual Loads 0 Difficulty Rogue Special Mode None Game No. 467 Rogue 467 Adventurer 0 Explorer 0 Win Type - Total 157 Types 89/9/42/6/3/2/4/1/1 Lore% 95 Gallery% 94 Achievement% 84 Wizard Run 0 Options --------- ASCII 1 Keyboard 0 Movement Vi Keybinds 0 Fullscreen 0 Font 16/Smallcaps Map View 86x75 Tactical HUD 1 Map Filters NONE Filters NONE Steam 1 RUN: df830d2f-9f48-4504-a4b3-cde6b2c45427